{"text_format":"1","workbook":"xlsx","n_sheets":1,"sheets":["Sheet1"],"not_rendered":{"charts":0,"images":4,"macros":0,"external_links":0,"defined_names":1,"comments":1,"pivot_tables":0},"unopened":[],"bounds":{"document_bytes":16777216,"sheet_cells":100000,"rows_first":2000,"rows_last":500,"rows_between":2000,"halvings":0,"cell_chars":16384,"cell_head_chars":4096},"cells_cut":0,"cells_raw":0,"read":"whole","date_system":"1900"}

{"sheet":"Sheet1","index":0,"n_rows":41,"n_cols":10,"rows_kept":41,"cut":false,"hidden":false,"merged":[[38,2,38,8],[10,1,10,8],[11,1,11,8],[2,8,3,8],[1,3,2,6],[3,3,3,6],[4,3,4,6],[5,3,5,6]]}
[{"$f":"\"2017_Szombathely_\"&I5&\"_\"&I2&\"_\"&I3","v":"2017_Szombathely_Válassz!_Válassz!_"}]
[null,null,"Verseny neve:","17. SZÉKESFEHÉRVÁRI SÁRKÁNYHAJÓ FESZTIVÁL",null,null,null,"Egyesület neve:","Válassz!"]
[null,null,null,null,null,null,null,"Legénység neve:"]
[null,null,"Verseny helyszíne:","Székesfehérvár, Csónakázó-tó"]
[null,null,"Verseny dátuma:","2022. szeptember 24.",null,null,null,"Kategória:","Válassz!"]
[null,null,"Szervező:","Dragon Aktív Kft."]
[]
[null,"Kérünk minden adatot elektronikusan és hiánytalanul kitölteni és visszaküldeni e-mailben, ECXEL formátumban, a verseny időpontja előtt 2 nappal!",null,null,null,null,null,null,"nyilvantartas@sarkanyhajozas.hu"]
[null,"Nyomtatott, aláírt példányt, a versenyt megelőző technikai értekezleten kell leadni."]
[]
[null,"A kapitány és a résztvevő kijelenti, hogy csapatának tagjai jó erőnléti és egészségi állapotban vannak, legalább 200 métert tudnak úszni könnyű sportfelszerelésben."]
[null,"Minden más esetben előzetesen a rendezőket tájékoztatni kell, és a mentőmellényt kötelezően viselni kell a hajóban. A rendező, a mentőmellény viselését indoklás nélkül elrendelheti."]
[null,null,null,null,null,null,null,null,"**versenyengedély feltűntetése esetén nem kötelező"]
[null,"Nr.                             ","NÉV","SZÜLETÉSI NÉV","VERSENYENGEDÉLYSZÁM\n(ha van)","**SZÜLETÉSI HELY","**SZÜLETÉSI IDŐ\n(év/hónap/nap)","E-MAIL CÍM","**ALÁÍRÁS"]
[null,1,null,null,null,null,null,null,null,{"$f":"$A$1","v":"2017_Szombathely_Válassz!_Válassz!_"}]
[null,2,null,null,null,null,null,null,null,{"$f":"$A$1","v":"2017_Szombathely_Válassz!_Válassz!_"}]
[null,3,null,null,null,null,null,null,null,"2017_Szombathely_Válassz!_Válassz!_"]
[null,4,null,null,null,null,null,null,null,"2017_Szombathely_Válassz!_Válassz!_"]
[null,5,null,null,null,null,null,null,null,"2017_Szombathely_Válassz!_Válassz!_"]
[null,6,null,null,null,null,null,null,null,"2017_Szombathely_Válassz!_Válassz!_"]
[null,7,null,null,null,null,null,null,null,"2017_Szombathely_Válassz!_Válassz!_"]
[null,8,null,null,null,null,null,null,null,"2017_Szombathely_Válassz!_Válassz!_"]
[null,9,null,null,null,null,null,null,null,"2017_Szombathely_Válassz!_Válassz!_"]
[null,10,null,null,null,null,null,null,null,"2017_Szombathely_Válassz!_Válassz!_"]
[null,{"$f":"IF(\"10 fős open\"=$I$5,\"Tartalék\",11)","v":11},null,null,null,null,null,null,null,"2017_Szombathely_Válassz!_Válassz!_"]
[null,{"$f":"IF(\"10 fős open\"=$I$5,\"Tartalék\",12)","v":12},null,null,null,null,null,null,null,"2017_Szombathely_Válassz!_Válassz!_"]
[null,{"$f":"IF(\"10 fős open\"=$I$5,\"Kormányos\",13)","v":13},null,null,null,null,null,null,null,"2017_Szombathely_Válassz!_Válassz!_"]
[null,{"$f":"IF(\"10 fős open\"=$I$5,\"Dobos\",14)","v":14},null,null,null,null,null,null,null,"2017_Szombathely_Válassz!_Válassz!_"]
[null,{"$f":"IF(\"10 fős open\"=$I$5,\" \",15)","v":15},null,null,null,null,null,null,null,"2017_Szombathely_Válassz!_Válassz!_"]
[null,{"$f":"IF(\"10 fős open\"=$I$5,\" \",16)","v":16},null,null,null,null,null,null,null,"2017_Szombathely_Válassz!_Válassz!_"]
[null,17,null,null,null,null,null,null,null,"2017_Szombathely_Válassz!_Válassz!_"]
[null,18,null,null,null,null,null,null,null,"2017_Szombathely_Válassz!_Válassz!_"]
[null,{"$f":"IF(\"10 fős open\"=$I$5,\" \",\"Tartalék\")","v":"Tartalék"},null,null,null,null,null,null,null,"2017_Szombathely_Válassz!_Válassz!_"]
[null,{"$f":"IF(\"10 fős open\"=$I$5,\" \",\"Tartalék\")","v":"Tartalék"},null,null,null,null,null,null,null,"2017_Szombathely_Válassz!_Válassz!_"]
[null,{"$f":"IF(\"10 fős open\"=$I$5,\" \",\"Tartalék\")","v":"Tartalék"},null,null,null,null,null,null,null,"2017_Szombathely_Válassz!_Válassz!_"]
[null,{"$f":"IF(\"10 fős open\"=$I$5,\" \",\"Tartalék\")","v":"Tartalék"},null,null,null,null,null,null,null,"2017_Szombathely_Válassz!_Válassz!_"]
[null,{"$f":"IF(\"10 fős open\"=$I$5,\" \",\"Kormányos\")","v":"Kormányos"},null,null,null,null,null,null,null,"2017_Szombathely_Válassz!_Válassz!_"]
[null,{"$f":"IF(\"10 fős open\"=$I$5,\" \",\"Dobos\")","v":"Dobos"},null,null,null,null,null,null,null,"2017_Szombathely_Válassz!_Válassz!_"]
[null,null,"Hozzájárulok, hogy az Magyar Sárkányhajó Szövetség által vagy annak ellenőrzése alatt más által szervezett sárkányhajó sport és szabadidő rendezvényen a Magyar Sárkányhajó Szövetség vagy ezen tevékenységre megbízottja saját céljai megvalósítása érdekében személyes adataimat rögzítse, továbbá rólam képmást és hangfelvételt készítsen. Hozzájárulok továbbá ahhoz, hogy a Magyar Sárkányhajó Szövetség ezen képmásaimat és hangfelvételeimet közzé tegye, sokszorosítsa, egyéb módon felhasználja és személyes adataimat és ezen felvételeket a jogszabályban meghatározott módon és időtartamig vagy írásbeli visszavonásomig személyes adataimmal együtt tárolja. Tudomásul veszem, hogy tömegfelvétel és nyilvános közéleti szereplésemről készült felvétel esetén nincs szükség a hozzájárulásomra a képmás és hangfelvétel elkészítéséhez és az elkészített felvétel felhasználásához."]
[]
[null,null,"Kapitány neve:",null,null,null,"Kapitány aláírása:"]